bitfinex-derivatives/quotes_ETHF0:USTF0_20250624
["timestamp","ask_amount","ask_price","bid_price","bid_amount"]
[1750777545940,8.76865,2447.8,2447.7,0.81662]
[1750777546348,0.8168,2447.3,2447.2,0.8168]
[1750777546641,8.7688,2447.3,2447.2,0.81683]
[1750777546842,8.7688,2447.3,2447.0,3.2078]
[1750777546843,3.2078,2447.5,2447.0,3.2078]
[1750777547146,0.81675,2447.5,2447.4,0.81674]
[1750777547550,7.952,2447.5,2447.4,0.81676]
[1750777547742,0.8167,2447.6,2447.5,0.81673]
[1750777547944,7.952,2447.6,2447.5,0.81673]
[1750777548346,7.952,2447.6,2447.1,1.3906]
[1750777548544,8.6426,2447.6,2447.1,0.7153]
[1750777548744,0.81681,2447.3,2447.2,0.81681]
[1750777548941,0.81676,2447.4,2447.2,0.81681]
[1750777549149,1.9667,2447.5,2447.2,0.81681]
[1750777549351,0.81678,2447.4,2447.2,0.81681]
[1750777549544,0.81678,2447.4,2447.0,3.2078]
[1750777549545,1.4056,2447.4,2447.3,0.81679]
[1750777549742,4.6134,2447.4,2446.9,2.42578162]
[1750777550053,2.04241,2446.8,2446.3,2.42578162]
[1750777550254,3.2078,2446.4,2446.0,2.42578162]
[1750777550556,7.953,2446.3,2445.8,2.42578162]
[1750777550754,4.025,2446.1,2445.8,0.81727]
[1750777550947,4.025,2446.1,2445.9,0.81724]
[1750777551143,3.2078,2446.1,2445.5,5.63358162]
[1750777551347,2.1249,2446.0,2445.6,0.81733]
[1750777551647,4.0251,2445.8,2445.6,0.81733]
[1750777552252,3.2078,2445.8,2445.7,0.81733]
[1750777553351,4.0251,2445.8,2445.6,0.81734]
[1750777553654,3.2078,2445.8,2445.7,0.81733]
[1750777554346,4.0251,2445.8,2445.7,0.81733]
[1750777554548,0.8173,2445.8,2445.7,0.81733]
[1750777554751,9.46638,2445.9,2445.7,0.81733]
[1750777555051,0.81737,2445.6,2445.4,3.2078]
[1750777555348,11.1628,2445.5,2445.0,0.81756]
[1750777555542,0.81753,2445.2,2444.9,3.2078]
[1750777555747,8.77255,2445.1,2444.5,1.2975]
[1750777555945,7.955,2445.1,2444.5,2.11522]
[1750777556148,0.81767,2444.7,2444.4,0.81775]
[1750777556350,7.955,2444.6,2444.2,0.6827]
[1750777556545,5.74186987,2444.4,2443.6,3.2078]
[1750777556746,5.74186987,2443.8,2443.3,3.2078]
[1750777556947,5.74186987,2443.5,2442.5,3.2078]
[1750777557150,7.955,2443.7,2442.5,1.2975]
[1750777557151,8.94966987,2443.1,2442.5,1.2975]
[1750777557350,8.94966987,2443.1,2442.2,3.912]
[1750777557351,50.2828,2443.1,2442.2,3.912]
[1750777557553,7.955,2443.0,2442.5,3.2078]
[1750777557752,7.955,2443.0,2442.9,0.81825]
[1750777557956,7.955,2443.0,2442.6,1.2975]
[1750777558447,47.075,2443.1,2442.9,0.81825]
[1750777558653,47.075,2443.1,2443.0,0.81823]
[1750777558856,54.951,2443.1,2442.7,3.2078]
[1750777559055,54.951,2443.1,2442.9,0.81825]
[1750777559854,54.951,2443.1,2442.6,1.2975]
[1750777560061,54.951,2443.1,2443.0,0.81823]
[1750777560260,3.2078,2444.0,2443.0,3.2078]
[1750777560456,7.876,2443.9,2443.8,0.81796]
[1750777560652,7.876,2443.9,2443.2,2.04542]
[1750777560851,3.2078,2443.6,2443.0,3.2078]
[1750777561054,35.202,2443.5,2442.9,1.3597]
[1750777561250,36.6216,2443.5,2442.7,3.2078]
[1750777561456,3.2078,2443.2,2442.7,4.6074]
[1750777561662,7.879,2443.1,2442.7,4.6074]
[1750777561961,27.349,2443.0,2442.4,3.2078]
[1750777562157,27.349,2443.0,2442.8,0.81828]
[1750777562357,3.2078,2443.1,2442.5,3.44556]
[1750777562557,35.225,2443.0,2442.7,0.81831]
[1750777562763,35.225,2443.0,2442.5,1.3996]
[1750777563060,3.2078,2442.8,2442.3,0.08189002]
[1750777563364,3.2078,2442.8,2442.5,0.81838]
[1750777563560,3.2078,2442.8,2442.3,0.08189002]
[1750777563768,7.879,2442.7,2442.4,1.3996]
[1750777564063,7.879,2442.7,2442.6,0.81837]
[1750777564366,30.5408,2442.9,2442.8,0.8183]
[1750777564567,3.2078,2442.9,2442.4,1.3996]
[1750777564867,7.881,2442.8,2442.7,0.81833]
[1750777565062,3.2078,2442.9,2442.4,1.3996]
[1750777565268,30.5328,2442.9,2442.8,0.8183]
[1750777565466,35.206,2442.9,2442.3,3.28969002]
[1750777565664,30.5288,2442.9,2442.8,0.81828]
[1750777565856,4.6274,2443.2,2443.0,0.81823]
[1750777566061,35.2,2443.1,2442.8,0.81829]
[1750777566257,0.81827,2442.9,2442.3,3.2078]
[1750777566462,0.81837,2442.6,2442.3,1.3814]
[1750777566761,0.81837,2442.6,2442.0,3.2078]
[1750777566762,30.5138,2442.5,2442.0,3.2078]
[1750777566962,0.81848,2442.3,2441.8,1.3]
[1750777567262,0.81873,2441.6,2441.1,3.2078]
[1750777567465,9.9545627,2441.9,2441.1,5.25492]
[1750777567760,17.40055,2442.1,2441.5,0.81874]
[1750777567962,8.7,2442.1,2441.6,1.3]
[1750777568162,35.244,2442.2,2442.1,0.81853]
[1750777569267,3.2078,2442.5,2441.9,1.3]
[1750777569568,36.04743,2442.4,2442.2,0.81848]
[1750777569863,35.229,2442.4,2442.2,0.81848]
[1750777570066,27.347,2442.4,2442.3,0.81847]
[1750777570257,3.2078,2442.5,2442.4,0.81843]
[1750777570458,38.4358,2442.5,2442.4,0.81843]
[1750777570658,3.2078,2442.5,2442.4,0.81843]
[1750777570955,11.0918,2442.5,2442.4,0.81843]
[1750777571164,3.2078,2442.5,2442.4,0.81843]
[1750777571459,47.133,2442.6,2442.5,0.8184]
[1750777571660,55.017,2442.6,2442.5,0.8184]
[1750777573362,3.2078,2443.0,2442.7,2.04583]
[1750777573666,3.2078,2443.0,2442.9,0.81827]
[1750777574061,7.885,2443.2,2443.0,0.81823]
[1750777574260,7.885,2443.2,2443.1,2.1835]
[1750777574463,47.146,2443.5,2443.4,0.8181]
[1750777574662,7.885,2443.6,2443.5,0.81807]
[1750777575070,7.885,2443.6,2443.1,3.41076]
[1750777575365,8.70305,2443.6,2443.1,3.41079]
[1750777575670,8.70305,2443.6,2443.5,0.81807]
[1750777575871,7.885,2443.6,2443.5,0.81807]
[1750777576072,3.2078,2443.7,2443.6,0.81803]
[1750777576567,28.13391,2444.0,2443.9,0.81793]
[1750777576870,36.0179,2444.0,2443.9,0.81793]
[1750777577072,0.81793,2443.9,2443.5,1.3906]
[1750777577268,0.81793,2443.9,2443.3,3.2078]
[1750777577269,3.2078,2443.7,2443.3,3.2078]
[1750777577573,0.8181,2443.4,2443.3,3.2078]
[1750777577873,0.8181,2443.4,2443.3,4.02592]
[1750777578072,0.81809,2443.5,2443.4,0.8181]
[1750777578369,36.01505,2443.6,2443.4,0.81808]
[1750777578564,35.197,2443.6,2443.1,1.3906]
[1750777578769,37.24212,2443.6,2442.8,2.04576]
[1750777578968,45.3963827,2443.6,2443.0,0.81821]
[1750777579177,35.197,2443.6,2443.2,0.81816]
[1750777579369,0.8181,2443.4,2443.3,0.81813]
[1750777579570,0.81817,2443.2,2443.1,0.8182]
[1750777579776,0.81822,2443.1,2443.0,0.81822]
[1750777579972,7.884,2443.1,2442.7,6.67973]
[1750777580166,7.884,2443.1,2443.0,0.81823]
[1750777581079,27.317,2443.2,2443.0,0.81823]
[1750777581080,3.2078,2443.4,2443.3,0.81813]
[1750777581372,4.0259,2443.4,2443.3,0.81813]
[1750777581573,0.81814,2443.3,2443.2,0.81814]
[1750777582075,3.2078,2443.4,2443.1,1.4261]
[1750777582371,0.81814,2443.3,2443.2,0.81817]
[1750777582675,0.81821,2443.1,2443.0,0.8182]
[1750777582873,8.70221,2443.1,2443.0,0.8182]
[1750777583076,0.81826,2443.0,2442.9,0.81825]
[1750777583977,11.0918,2443.1,2443.0,0.81823]
[1750777584275,0.81826,2443.0,2442.9,0.81825]
[1750777585077,0.81833,2442.8,2442.7,0.81832]
[1750777585376,0.81836,2442.7,2442.6,0.81836]
[1750777585572,8.70235,2442.7,2442.6,0.81834]
[1750777585878,0.81841,2442.6,2442.5,0.81839]
[1750777586069,8.70236,2442.7,2442.6,0.81837]
[1750777586269,3.8976,2442.8,2442.7,0.81834]
[1750777586470,12.5999,2442.8,2442.7,0.81834]
[1750777586676,11.7816,2442.8,2442.2,3.40272]
[1750777586875,0.81842,2442.5,2442.4,0.81841]
[1750777587070,0.81846,2442.4,2442.3,0.81844]
[1750777587370,8.70246,2442.4,2442.3,0.81844]
[1750777587574,8.70244,2442.4,2442.3,0.81844]
[1750777587771,7.884,2442.4,2442.1,3.2078]
[1750777587976,0.81852,2442.2,2442.1,0.8185]
[1750777588174,10.02984,2442.4,2442.3,0.81847]
[1750777588676,10.02984,2442.4,2441.9,2.0465]
[1750777588677,0.81849,2442.3,2442.2,0.81848]
[1750777588979,9.2114,2442.4,2441.8,6.61088]
[1750777588980,10.02985,2442.4,2442.3,0.81847]
[1750777589171,9.2114,2442.4,2441.8,6.61088]
[1750777589374,9.2114,2442.4,2442.0,0.81854]
[1750777589375,0.81855,2442.1,2442.0,0.81854]
[1750777589880,0.81859,2442.0,2441.9,0.81858]
[1750777590183,0.81863,2441.9,2441.8,0.81861]
[1750777590474,0.81863,2441.9,2441.2,12.25873887]
[1750777590475,7.79258707,2441.9,2441.1,3.2078]
[1750777590680,6.56477707,2441.6,2441.5,0.81872]
[1750777590875,41.57277707,2441.6,2441.5,0.81872]
[1750777591077,40.75403707,2441.6,2441.1,3.2078]
[1750777591381,40.75403707,2441.6,2441.1,6.64458]
[1750777591583,0.81883,2441.3,2441.2,0.81882]
[1750777591971,0.81876,2441.5,2441.4,0.81875]
[1750777592177,0.81872,2441.6,2441.5,0.81872]
[1750777592378,3.2078,2441.7,2441.6,0.81871]
[1750777592582,7.8,2441.7,2441.6,0.81871]
[1750777592779,7.8,2441.7,2441.1,3.2078]
[1750777592980,5.74603707,2441.6,2440.9,2.04736]
[1750777593184,5.74603707,2441.3,2440.7,5.25532]
[1750777593484,7.8,2441.2,2441.1,0.81885]
[1750777593674,8.61884,2441.2,2440.8,1.4329]
[1750777593983,7.8,2441.2,2440.6,2.04761]
[1750777594282,3.2078,2441.0,2440.5,1.3522]
[1750777594583,7.802,2440.9,2440.8,0.81898]
[1750777596077,8.95383707,2441.3,2440.6,3.47151]
[1750777596078,3.2078,2441.3,2441.2,0.81884]
[1750777596275,48.5,2441.8,2441.1,4.09437]
[1750777596494,7.802,2441.8,2441.7,0.81867]
[1750777596985,1.3337,2442.2,2441.3,9.34888]
[1750777596986,7.802,2442.1,2442.0,0.81857]
[1750777597388,50.3678,2442.5,2442.1,2.04634]
[1750777597684,3.2078,2442.5,2442.4,0.81844]
[1750777598075,3.2078,2442.8,2442.5,0.8184]
[1750777598381,16.60130526,2442.7,2441.6,5.25454]
[1750777598579,16.60130526,2442.7,2442.0,0.81855]
[1750777598580,0.81854,2442.1,2442.0,0.81855]
[1750777598779,0.81854,2442.1,2441.6,5.25454]
[1750777598780,8.62156,2442.1,2441.9,0.81859]
[1750777598984,0.8186,2442.0,2441.8,0.81861]
[1750777599183,0.81862,2441.9,2441.7,0.81866]
[1750777599390,0.66,2441.9,2441.7,0.81865]
[1750777599683,0.66,2441.9,2441.8,0.81864]
[1750777599879,9.28163,2441.9,2441.7,0.81865]
[1750777600075,0.81871,2441.6,2441.5,0.81872]
[1750777600276,9.7682,2441.9,2441.6,0.8187]
[1750777600486,0.81867,2441.7,2441.6,0.8187]
[1750777600787,0.81866,2441.8,2441.6,0.8187]
[1750777601087,0.81866,2441.8,2441.7,0.81867]
[1750777601283,0.81866,2441.8,2441.6,0.81868]
[1750777601490,8.463,2441.9,2441.7,0.81866]
[1750777601686,0.66,2441.9,2441.8,0.81864]
[1750777601883,7.803,2442.1,2442.0,0.81857]
[1750777603188,19.55538526,2442.1,2441.6,0.81868]
[1750777603487,3.2078,2441.9,2441.3,3.2078]
[1750777603693,3.2078,2441.9,2441.6,0.81869]
[1750777603694,0.7174,2441.8,2441.6,0.81869]
[1750777603994,8.62168,2441.7,2441.3,4.5305]
[1750777604391,0.81871,2441.6,2441.3,4.5305]
[1750777604596,0.81874,2441.5,2441.4,0.81875]
[1750777604892,0.81882,2441.3,2441.2,0.81883]
[1750777605195,0.81887,2441.2,2441.1,0.81886]
[1750777605691,0.81891,2441.0,2440.9,0.81892]
[1750777606190,0.81889,2441.1,2441.0,0.8189]
[1750777606579,0.81889,2441.1,2441.0,0.81889]
[1750777606580,0.81888,2441.1,2441.0,0.81889]
[1750777606882,11.0108,2441.3,2441.0,0.81889]
[1750777607079,11.0108,2441.3,2440.8,0.81895]
[1750777607285,0.81898,2440.8,2440.7,0.81898]
[1750777607481,0.81901,2440.7,2440.6,2.25782]
[1750777607688,0.81904,2440.6,2440.5,4.02686]
[1750777608281,0.81904,2440.6,2440.5,4.02688]
[1750777608492,7.803,2440.9,2440.5,4.02688]
[1750777608493,7.803,2440.9,2440.5,3.2078]
[1750777608692,9.2419,2440.9,2440.5,3.2078]
[1750777608895,0.81904,2440.6,2440.5,3.2078]
[1750777609090,0.81904,2440.6,2440.5,0.81906]
[1750777609294,11.28928,2440.9,2440.3,1.4388]
[1750777609490,9.2419,2440.9,2440.4,2.04777]
[1750777609690,0.81903,2440.7,2440.6,0.81903]
[1750777610197,0.819,2440.8,2440.7,0.81899]
[1750777610589,0.8191,2440.5,2440.4,0.81909]
[1750777610891,0.81904,2440.7,2440.6,0.81903]
[1750777611088,0.819,2440.8,2440.7,0.819]
[1750777611290,0.81902,2440.7,2440.6,0.81902]
[1750777611501,0.81899,2440.8,2440.7,0.81899]
[1750777611790,0.81898,2440.8,2440.7,0.81898]
[1750777612689,9.95916,2440.9,2440.8,0.81897]
[1750777612884,0.81896,2440.9,2440.8,0.81896]
[1750777613089,0.81902,2440.7,2440.6,0.819]
[1750777613293,0.81904,2440.6,2440.5,4.02686]
[1750777613783,0.81904,2440.6,2440.5,3.2078]
[1750777613986,0.81911,2440.4,2440.3,0.81913]
[1750777614189,0.8191,2440.5,2440.4,0.81908]
[1750777614388,8.6241,2440.5,2440.4,0.81911]
[1750777614789,0.81919,2440.2,2439.9,3.2078]
[1750777614996,0.81923,2440.1,2439.9,3.2078]
[1750777615185,0.81924,2440.0,2439.9,4.02705]
[1750777615389,0.81924,2440.0,2439.9,0.81925]
[1750777615589,0.81932,2439.8,2439.5,1.9841]
[1750777615790,0.81929,2439.9,2439.8,0.81931]
[1750777616098,0.81927,2440.0,2439.6,3.2078]
[1750777616289,7.805,2440.1,2440.0,0.81924]
[1750777616491,8.62421,2440.1,2440.0,0.81924]
[1750777616693,0.81926,2440.0,2439.9,0.81926]
[1750777616891,0.81929,2439.9,2439.8,0.81929]
[1750777617095,9.85306,2440.1,2439.6,3.2078]
[1750777617295,0.81934,2439.8,2439.7,0.81932]
[1750777617495,2.04822,2439.9,2439.3,3.2078]
[1750777617705,8.12838526,2439.9,2439.0,4.5852]
[1750777618003,0.81952,2439.2,2439.1,0.81952]
[1750777618196,5.25635,2439.5,2439.0,3.2078]
[1750777618197,0.81954,2439.1,2439.0,3.2078]
[1750777618395,7.68,2439.3,2438.9,0.8196]
[1750777618602,0.81957,2439.1,2439.0,0.81958]
[1750777618903,1.376,2439.2,2438.7,3.2078]
[1750777618904,7.68,2439.3,2439.2,0.81951]
[1750777619300,8.4995,2439.3,2438.8,1.3833]
[1750777619695,0.6753,2439.4,2438.8,1.3833]
[1750777619905,0.81954,2439.2,2438.8,1.3833]
[1750777620104,7.68,2439.3,2438.8,1.3833]
[1750777620298,4.6345,2439.2,2438.7,3.2078]
[1750777620494,0.8196,2439.0,2438.5,2.04937]
[1750777620701,7.68,2438.9,2438.5,3.43267]
[1750777620903,7.68,2438.9,2438.8,0.81964]
[1750777621205,8.49961,2438.9,2438.8,0.81964]
[1750777621394,7.68,2438.9,2438.8,0.81964]
[1750777621600,0.6557,2439.2,2439.1,0.81954]
[1750777621800,0.81959,2439.0,2438.7,3.2078]
[1750777622003,0.81967,2438.8,2438.7,0.81968]
[1750777622198,7.682,2438.8,2438.5,2.04937]
[1750777622392,0.6557,2439.2,2438.7,4.02748]
[1750777622597,8.50155,2439.1,2439.0,0.81958]
[1750777622999,0.6557,2439.2,2439.1,0.81954]
[1750777623200,7.682,2439.2,2439.1,0.81954]
[1750777624197,50.3978,2439.6,2439.2,2.0487]
[1750777624400,0.6518,2439.9,2439.5,4.02721]
[1750777624703,2.04729,2441.0,2439.8,5.25605]
[1750777625007,12.8824,2441.1,2440.2,2.04795]
[1750777625199,0.81896,2440.9,2440.8,0.81898]
[1750777625400,0.81901,2440.7,2440.6,0.81902]
[1750777625702,0.819,2440.8,2440.6,0.81902]
[1750777625892,12.8824,2441.1,2440.3,1.4013]
[1750777626096,0.81915,2440.3,2440.2,0.81916]
[1750777626408,5.25525,2440.8,2439.8,2.04821]
[1750777626409,7.683,2440.6,2439.9,1.4013]
[1750777626599,7.683,2440.6,2439.7,11.6093]
[1750777626798,0.81919,2440.2,2440.1,0.81921]
[1750777626999,0.81919,2440.2,2440.0,0.81923]
[1750777627306,0.8192,2440.2,2440.0,0.81922]
[1750777627506,0.81922,2440.1,2440.0,0.81923]
[1750777627704,0.81925,2440.0,2439.8,2.2206]
[1750777628107,0.81925,2440.0,2439.8,1.4013]
[1750777628306,7.683,2440.2,2439.7,4.74563]
[1750777628509,5.61033128,2441.6,2440.2,2.04795]
[1750777628803,4.00421881,2442.2,2440.1,3.2078]
[1750777628804,0.81891,2441.0,2440.9,3.2078]
[1750777629010,9.96018526,2441.5,2440.6,3.2078]
[1750777629011,0.81901,2440.7,2440.6,3.2078]
[1750777629202,9.96018526,2441.1,2440.4,1.4071]
[1750777629508,8.50186,2441.2,2440.8,0.81898]
[1750777629701,2.18675,2441.5,2440.9,4.6149]
[1750777630006,0.81881,2441.3,2441.2,3.2078]
[1750777630210,0.81881,2441.3,2441.0,0.8189]
[1750777630706,1.3351,2441.6,2441.0,1.4071]
[1750777630923,0.81891,2441.0,2440.9,3.2078]
[1750777631101,0.81891,2441.0,2440.7,0.81899]
[1750777631295,0.81895,2440.9,2440.6,3.2078]
[1750777631499,0.81893,2441.0,2440.6,3.2078]
[1750777631800,0.81893,2441.0,2440.9,3.2078]
[1750777633107,0.81905,2440.6,2440.5,3.2078]
[1750777633305,0.81911,2440.5,2440.3,2.0135]
[1750777633502,0.81911,2440.4,2440.3,2.0135]
[1750777634212,7.681,2440.7,2440.2,3.2078]
[1750777634510,0.81915,2440.3,2440.2,3.2078]
[1750777634903,0.8191,2440.5,2440.3,0.81914]
[1750777635109,0.81915,2440.3,2440.2,3.2078]
[1750777635312,0.81912,2440.4,2440.2,4.02697]
[1750777635511,0.81915,2440.3,2440.2,3.2078]
[1750777635712,0.81915,2440.3,2440.2,4.02697]
[1750777635902,0.81915,2440.3,2440.2,3.2078]
[1750777636098,0.81915,2440.3,2440.2,4.02698]
[1750777636303,0.81915,2440.3,2440.2,3.2078]
[1750777636504,7.681,2440.3,2439.9,0.81927]
[1750777636710,7.681,2440.3,2439.8,4.554]
[1750777636711,7.681,2440.3,2439.8,3.2078]
[1750777636908,0.81928,2439.9,2439.8,3.2078]
[1750777637103,8.50028,2439.9,2439.8,3.2078]
[1750777637304,7.681,2439.9,2439.5,3.2078]
[1750777637504,2.0185,2440.2,2439.5,3.2078]
[1750777637505,7.681,2440.0,2439.8,3.2078]
[1750777638011,0.81928,2439.9,2439.8,3.2078]
[1750777638212,0.81935,2439.7,2439.6,0.81936]
[1750777638414,7.681,2440.0,2439.5,0.81939]
[1750777638607,0.81938,2439.6,2439.5,0.81939]
[1750777639018,0.81937,2439.7,2439.6,0.81938]
[1750777639314,7.681,2439.8,2439.3,4.6445]
[1750777639315,7.681,2439.8,2439.3,3.2078]
[1750777639517,2.73109,2440.2,2439.4,2.04863]
[1750777639817,0.81932,2439.8,2439.7,0.81932]
[1750777640216,0.81935,2439.7,2439.6,3.2078]
[1750777640408,0.81935,2439.7,2439.6,4.02718]
[1750777641313,0.81935,2439.7,2439.6,3.2078]
[1750777641508,0.81935,2439.7,2439.2,4.02729]
[1750777641509,0.81948,2439.3,2439.2,4.02729]
[1750777641706,9.73074,2439.3,2438.9,3.2078]
[1750777641905,0.81958,2439.0,2438.9,4.02739]
[1750777642314,8.50151,2439.3,2439.2,0.81952]
[1750777642707,7.683,2439.3,2439.0,1.399]
[1750777642906,8.5025,2439.3,2439.2,0.81952]
[1750777643217,0.8195,2439.3,2439.2,0.81952]
[1750777643907,0.81953,2439.2,2439.1,0.81952]
[1750777644313,0.81955,2439.1,2438.9,3.2078]
[1750777644510,8.7,2440.4,2438.9,14.98884]
[1750777644822,3.20337505,2442.0,2440.4,4.09559]
[1750777645017,3.20337505,2442.0,2441.7,3.2078]
[1750777645018,0.08190008,2442.0,2441.7,3.2078]
[1750777645408,0.08190008,2442.0,2441.8,0.81862]
[1750777645615,0.08190008,2442.0,2441.9,0.81861]
[1750777645920,0.08190008,2442.0,2441.7,3.2078]
[1750777646121,0.08190008,2442.0,2441.9,0.81861]
[1750777646710,0.6696,2442.9,2441.9,0.81861]
[1750777646711,3.2078,2443.2,2441.9,11.75238526]
[1750777646916,9.92832,2443.1,2442.7,4.02614]
[1750777647220,7.683,2443.0,2442.8,0.81831]
[1750777647420,7.683,2443.0,2442.9,0.81827]
[1750777647621,8.50126,2443.0,2442.7,3.2078]
[1750777647818,7.683,2443.0,2442.8,0.8183]
[1750777648123,7.683,2443.0,2442.9,0.81827]
[1750777648325,3.8742,2443.2,2442.8,1.3135]
[1750777648621,7.956,2443.1,2443.0,0.81824]
[1750777649022,7.956,2443.1,2443.0,3.2078]
[1750777649931,0.81812,2443.4,2443.1,0.8182]
[1750777650122,7.956,2443.3,2443.0,3.2078]
[1750777650324,0.8182,2443.2,2443.0,3.2078]
[1750777650520,8.77421,2443.1,2443.0,3.2078]
[1750777650822,2.04588,2442.7,2441.5,2.43003434]
[1750777651025,3.2078,2442.2,2441.8,0.81864]
[1750777651319,49.2728,2442.6,2442.0,3.2078]
[1750777651520,0.81854,2442.1,2442.0,3.2078]
[1750777651722,8.77257,2442.1,2441.7,3.2078]
[1750777651916,8.77255,2442.1,2441.7,4.02646]
[1750777652219,3.2078,2442.4,2441.7,3.2078]
[1750777652427,7.954,2442.5,2442.2,0.81849]
[1750777652724,0.81844,2442.4,2442.3,1.4143]
[1750777653022,8.77242,2442.5,2442.3,1.4143]
[1750777653521,0.81844,2442.4,2442.3,1.4143]
[1750777653920,7.954,2442.5,2442.1,3.2078]
[1750777653921,0.81851,2442.2,2442.1,3.2078]
[1750777654818,0.81856,2442.1,2441.9,1.4143]
[1750777655021,9.3477,2442.5,2441.9,1.4143]
[1750777655323,0.81854,2442.2,2442.1,3.2078]
[1750777655624,0.81851,2442.2,2442.1,3.2078]
[1750777656129,0.81873,2441.6,2441.5,3.2078]
[1750777656420,0.81873,2441.6,2441.3,0.7028]
[1750777656421,0.81881,2441.3,2441.2,3.2078]
[1750777656629,0.81891,2441.0,2440.9,3.2078]
[1750777656821,2.04731,2441.0,2440.6,3.2078]
[1750777657125,9.96018526,2440.9,2440.3,3.2078]
[1750777657332,0.81911,2440.4,2440.3,3.2078]
[1750777658015,0.81911,2440.4,2440.1,1.4279]
[1750777658016,0.81918,2440.2,2440.1,1.4279]
[1750777658325,0.81921,2440.1,2440.0,3.2078]
[1750777660128,0.81921,2440.1,2440.0,4.6067]
[1750777660529,8.7742,2440.2,2440.0,5.42595]
[1750777660831,0.81921,2440.1,2440.0,4.6067]
[1750777661526,0.8192,2440.2,2440.0,4.6067]
[1750777661718,0.81921,2440.1,2440.0,4.6067]
[1750777661924,8.7742,2440.2,2440.0,4.6067]
[1750777662124,8.7742,2440.2,2440.0,5.42594]
[1750777662426,8.7742,2440.2,2440.0,4.6067]
[1750777662427,0.81921,2440.1,2440.0,4.6067]
[1750777662927,7.955,2440.2,2440.1,0.8192]
[1750777663126,7.955,2440.2,2440.0,5.42592]
[1750777663322,0.81921,2440.1,2440.0,5.42592]
[1750777663523,8.80012526,2440.5,2440.1,0.81921]
[1750777663524,8.77519,2440.2,2440.1,0.81921]
[1750777663728,0.81919,2440.2,2440.1,0.81921]
[1750777663929,8.77519,2440.2,2440.1,0.81921]
[1750777664834,35.69428526,2440.5,2440.2,0.81918]
[1750777664835,7.956,2440.3,2440.2,0.81918]
[1750777665028,0.8191,2440.5,2440.4,0.8191]
[1750777665223,0.81918,2440.2,2440.1,2.19189]
[1750777665429,0.81918,2440.2,2440.1,2.19191]
[1750777665632,0.81915,2440.4,2440.3,0.81913]
[1750777666133,0.81903,2440.7,2440.6,0.81901]
[1750777666324,0.81908,2440.5,2440.4,1.3727]
[1750777666736,0.81915,2440.3,2440.2,3.2078]
[1750777666931,0.81915,2440.3,2440.2,4.02698]
[1750777667634,0.81914,2440.4,2440.3,0.81912]
[1750777668024,0.81915,2440.3,2440.2,4.02696]
[1750777668225,10.00355,2440.7,2440.2,4.02696]
[1750777668426,2.04756,2440.7,2440.2,3.2078]
[1750777668732,0.81915,2440.4,2440.3,2.25783]
[1750777669230,0.81905,2440.7,2440.6,0.81902]
[1750777669532,0.81911,2440.4,2440.3,1.4387]
[1750777669838,0.81914,2440.4,2440.3,0.81911]
[1750777670139,0.81914,2440.4,2440.3,2.25781]
[1750777670328,0.81914,2440.4,2440.3,0.81911]
[1750777670530,0.81915,2440.3,2440.2,4.02696]
[1750777670835,0.81913,2440.4,2440.3,0.81911]
[1750777671235,0.81913,2440.4,2440.3,2.12811]
[1750777671939,6.588,2440.9,2440.3,2.12811]
[1750777671940,6.588,2440.9,2440.3,3.35687]
[1750777672136,8.77599,2440.9,2440.8,0.81896]
[1750777672332,0.6766,2441.4,2440.9,2.04737]
[1750777672531,5.2397,2442.0,2441.1,3.2078]
[1750777672732,0.8187,2441.7,2441.6,0.81869]
[1750777672937,0.81871,2441.6,2441.5,4.02653]
[1750777673135,0.8187,2441.7,2441.6,0.81868]
[1750777673333,7.957,2441.7,2441.6,0.81868]
[1750777673535,8.77565,2441.8,2441.7,0.81868]
[1750777673733,0.81868,2441.7,2441.6,2.25089]
[1750777673933,0.81868,2441.7,2441.6,0.81869]
[1750777674337,0.81868,2441.7,2441.5,3.2078]
[1750777674338,8.77567,2441.8,2441.7,0.81868]
[1750777674542,7.957,2441.8,2441.7,0.81868]
[1750777674744,47.8876,2442.2,2441.5,3.2078]
[1750777674745,48.70612,2442.2,2441.5,3.2078]
[1750777675038,8.77555,2442.1,2441.8,3.2078]
[1750777675233,7.957,2442.1,2442.0,0.81858]
[1750777675432,5.25375,2442.6,2441.9,1.4322]
[1750777675433,3.2078,2442.6,2441.9,1.4322]
[1750777675636,0.81838,2442.6,2442.5,0.81841]
[1750777675845,0.81841,2442.5,2442.1,3.2078]
[1750777676038,9.2846,2442.8,2442.2,1.4322]
[1750777676341,9.2846,2442.8,2442.3,0.81848]
[1750777676342,1.3512,2442.7,2442.3,0.81848]
[1750777676542,9.2846,2442.8,2442.2,1.4322]
[1750777676844,0.81836,2442.7,2442.6,0.81837]
[1750777677344,0.81838,2442.6,2442.5,0.81839]
[1750777677741,0.81841,2442.5,2442.4,3.2078]
[1750777679238,0.81847,2442.4,2442.2,0.81849]
[1750777679440,28.24439,2442.6,2442.5,0.81841]
[1750777679743,0.81847,2442.4,2442.3,0.81848]
[1750777680543,0.81851,2442.2,2442.1,3.2078]
[1750777680747,16.70770526,2442.2,2441.7,3.2078]
[1750777680939,0.81863,2441.9,2441.8,0.81863]
[1750777681137,0.81866,2441.8,2441.6,1.3632]